fUST/lending_fUST_20250627
["ID","MTS","AMOUNT","RATE_DAILY","PERIOD"]
[367925561,1750968643425,-460.0,0.00021643,2]
[367925563,1750968643434,-460.0,0.00021643,2]
[367925565,1750968643443,-460.0,0.00021643,2]
[367925567,1750968643458,-462.95534283,0.00021643,2]
[367925569,1750968643467,-478.26929679,0.00021643,2]
[367925570,1750968643476,-460.0,0.00021643,2]
[367925572,1750968643485,-460.0,0.00021643,2]
[367925574,1750968643494,-870.21,0.00021643,2]
[367925576,1750968643503,-460.0,0.00021643,2]
[367925578,1750968643512,-460.0,0.00021643,2]
[367925580,1750968643522,-460.0,0.00021643,2]
[367925582,1750968643531,-460.0,0.00021643,2]
[367925584,1750968643540,-460.0,0.00021643,2]
[367925586,1750968643550,-460.0,0.00021643,2]
[367925588,1750968643559,-460.0,0.00021643,2]
[367925590,1750968643568,-460.0,0.00021643,2]
[367925591,1750968643577,-460.0,0.00021643,2]
[367925593,1750968643586,-460.0,0.00021643,2]
[367925595,1750968643595,-460.0,0.00021643,2]
[367925597,1750968643604,-3115.51,0.00021643,2]
[367925599,1750968643613,-337.97104462,0.00021643,2]
[367925601,1750968643623,-460.0,0.00021643,2]
[367925603,1750968643633,-460.0,0.00021643,2]
[367925606,1750968643642,-151.0,0.00021643,2]
[367925608,1750968643651,-577.98,0.00021643,2]
[367925610,1750968643660,-460.0,0.00021643,2]
[367925612,1750968643670,-460.0,0.00021643,2]
[367925614,1750968643679,-463.41204926,0.00021643,2]
[367925616,1750968643689,-460.0,0.00021643,2]
[367925618,1750968643698,-460.0,0.00021643,2]
[367925620,1750968643707,-169.369693,0.00021643,2]
[367925621,1750968643716,-1623.66,0.00021643,2]
[367925623,1750968643726,-906.73,0.00021643,2]
[367925625,1750968643735,-460.0,0.00021643,2]
[367925627,1750968643745,-460.0,0.00021643,2]
[367925629,1750968643754,-460.0,0.00021643,2]
[367925631,1750968643764,-460.0,0.00021643,2]
[367925633,1750968643773,-1333.72,0.00021643,2]
[367925635,1750968643783,-460.0,0.00021643,2]
[367925637,1750968643792,-460.0,0.00021643,2]
[367925639,1750968643802,-460.0,0.00021643,2]
[367925641,1750968643811,-460.0,0.00021643,2]
[367925643,1750968643820,-460.0,0.00021643,2]
[367925645,1750968643829,-460.0,0.00021643,2]
[367925647,1750968643838,-460.0,0.00021643,2]
[367925649,1750968643848,-460.0,0.00021643,2]
[367925651,1750968643857,-2127.55,0.00021643,2]
[367925653,1750968643867,-460.0,0.00021643,2]
[367925655,1750968643876,-460.0,0.00021643,2]
[367925657,1750968643886,-460.0,0.00021643,2]
[367925658,1750968643895,-460.0,0.00021643,2]
[367925660,1750968643905,-460.0,0.00021643,2]
[367925662,1750968643914,-460.0,0.00021643,2]
[367925664,1750968643923,-3886.46,0.00021643,2]
[367925666,1750968643931,-460.0,0.00021643,2]
[367925668,1750968643940,-460.0,0.00021643,2]
[367925670,1750968643949,-573.54585652,0.00021643,2]
[367925672,1750968643958,-460.0,0.00021643,2]
[367925674,1750968643968,-460.0,0.00021643,2]
[367925676,1750968643977,-460.0,0.00021643,2]
[367925678,1750968643986,-151.0,0.00021643,2]
[367925679,1750968643995,-460.0,0.00021643,2]
[367925681,1750968644004,-460.0,0.00021643,2]
[367925683,1750968644013,-460.0,0.00021643,2]
[367925685,1750968644022,-460.0,0.00021643,2]
[367925687,1750968644032,-460.0,0.00021643,2]
[367925689,1750968644040,-460.0,0.00021643,2]
[367925691,1750968644050,-694.02,0.00021643,2]
[367925693,1750968644059,-460.0,0.00021643,2]
[367925695,1750968644069,-170.896228,0.00021643,2]
[367925697,1750968644078,-687.75,0.00021643,2]
[367925699,1750968644087,-460.0,0.00021643,2]
[367925700,1750968644096,-460.0,0.00021643,2]
[367925702,1750968644106,-460.0,0.00021643,2]
[367925704,1750968644115,-460.0,0.00021643,2]
[367925706,1750968644124,-607.03845163,0.00021643,2]
[367925708,1750968644133,-518.40859728,0.00021643,2]
[367925710,1750968644142,-170.896228,0.00021643,2]
[367925712,1750968644151,-460.0,0.00021643,2]
[367925714,1750968644160,-460.0,0.00021643,2]
[367925716,1750968644169,-460.0,0.00021643,2]
[367925718,1750968644178,-439.8095611,0.00021643,2]
[367925720,1750968644190,-460.0,0.00021643,2]
[367925722,1750968644199,-151.0,0.00021643,2]
[367925723,1750968644208,-460.0,0.00021643,2]
[367925725,1750968644217,-1049.3,0.00021643,2]
[367925726,1750968644226,-150.76727999,0.00021643,2]
[367925727,1750968644235,-460.0,0.00021643,2]
[367925728,1750968644244,-460.0,0.00021643,2]
[367925729,1750968644252,-189.43911848,0.00021643,2]
[367925730,1750968644261,-460.0,0.00021643,2]
[367925731,1750968644270,-460.0,0.00021643,2]
[367925732,1750968644279,-229.87566229,0.00021643,2]
[367925733,1750968644288,-460.0,0.00021643,2]
[367925734,1750968644298,-460.83905023,0.00021643,2]
[367925735,1750968644307,-460.0,0.00021643,2]
[367925736,1750968644316,-460.0,0.00021643,2]
[367925737,1750968644324,-460.0,0.00021643,2]
[367925738,1750968644333,-460.0,0.00021643,2]
[367925739,1750968644342,-494.65,0.00021643,2]
[367925740,1750968644351,-460.0,0.00021643,2]
[367925741,1750968644360,-460.84183338,0.00021643,2]
[367925742,1750968644368,-518.15329318,0.00021643,2]
[367925743,1750968644378,-460.0,0.00021643,2]
[367925744,1750968644387,-460.0,0.00021643,2]
[367925745,1750968644396,-460.0,0.00021643,2]
[367925746,1750968644404,-460.0,0.00021643,2]
[367925747,1750968644413,-626.45,0.00021643,2]
[367925748,1750968644422,-460.0,0.00021643,2]
[367925749,1750968644431,-480.02,0.00021643,2]
[367925750,1750968644441,-572.117446,0.00021643,2]
[367925752,1750968644453,-460.0,0.00021643,2]
[367925753,1750968644463,-460.0,0.00021643,2]
[367925755,1750968644472,-542.0,0.00021643,2]
[367925756,1750968644481,-500.0,0.00021643,2]
[367925758,1750968644493,-151.0,0.00021643,2]
[367925760,1750968644503,-500.0,0.00021643,2]
[367925762,1750968644511,-363.94596124,0.00021643,2]
[367925764,1750968644521,-460.0,0.00021643,2]
[367925766,1750968644530,-460.0,0.00021643,2]
[367925768,1750968644539,-572.117446,0.00021643,2]
[367925770,1750968644548,-460.0,0.00021643,2]
[367925772,1750968644558,-1230.12,0.00021643,2]
[367925774,1750968644568,-460.0,0.00021643,2]
[367925776,1750968644576,-460.0,0.00021643,2]
[367925778,1750968644585,-460.0,0.00021643,2]
[367925780,1750968644594,-460.0,0.00021643,2]
[367925782,1750968644603,-460.0,0.00021643,2]
[367925784,1750968644612,-460.0,0.00021643,2]
[367925786,1750968644621,-460.0,0.00021643,2]
[367925788,1750968644630,-460.0,0.00021643,2]
[367925789,1750968644639,-460.0,0.00021643,2]
[367925791,1750968644648,-460.0,0.00021643,2]
[367925793,1750968644658,-503.77657955,0.00021643,2]
[367925795,1750968644667,-460.66801348,0.00021643,2]
[367925797,1750968644676,-460.0,0.00021643,2]
[367925799,1750968644686,-460.0,0.00021643,2]
[367925801,1750968644695,-2451.27,0.00021643,2]
[367925803,1750968644704,-463.41855818,0.00021643,2]
[367925805,1750968644714,-460.0,0.00021643,2]
[367925807,1750968644723,-460.0,0.00021643,2]
[367925809,1750968644733,-525.87460655,0.00021643,2]
[367925811,1750968644742,-460.0,0.00021643,2]
[367925813,1750968644751,-460.0,0.00021643,2]
[367925815,1750968644761,-460.0,0.00021643,2]
[367925817,1750968644771,-460.41628457,0.00021643,2]
[367925819,1750968644780,-460.0,0.00021643,2]
[367925821,1750968644789,-515.07,0.00021643,2]
[367925823,1750968644799,-460.0,0.00021643,2]
[367925825,1750968644808,-2606.45,0.00021643,2]
[367925827,1750968644817,-541.53,0.00021643,2]
[367925829,1750968644827,-151.0,0.00021643,2]
[367925831,1750968644836,-460.0,0.00021643,2]
[367925833,1750968644845,-500.0,0.00021643,2]
[367925835,1750968644854,-460.0,0.00021643,2]
[367925837,1750968644863,-151.0,0.00021643,2]
[367925839,1750968644872,-460.0,0.00021643,2]
[367925841,1750968644882,-460.0,0.00021643,2]
[367925843,1750968644891,-460.0,0.00021643,2]
[367925845,1750968644900,-460.0,0.00021643,2]
[367925847,1750968644910,-715.7,0.00021643,2]
[367925849,1750968644919,-460.0,0.00021643,2]
[367925850,1750968644928,-460.0,0.00021643,2]
[367925852,1750968644938,-460.0,0.00021643,2]
[367925854,1750968644948,-460.0,0.00021643,2]
[367925856,1750968644957,-460.98571758,0.00021643,2]
[367925858,1750968644966,-460.0,0.00021643,2]
[367925860,1750968644975,-460.0,0.00021643,2]
[367925862,1750968644984,-594.03,0.00021643,2]
[367925864,1750968644993,-460.0,0.00021643,2]
[367925866,1750968645004,-498.86,0.00021643,2]
[367925868,1750968645013,-3541.86,0.00021643,2]
[367925870,1750968645022,-748.59,0.00021643,2]
[367925872,1750968645032,-501.07,0.00021643,2]
[367925874,1750968645041,-151.0,0.00021643,2]
[367925876,1750968645050,-460.0,0.00021643,2]
[367925878,1750968645059,-460.0,0.00021643,2]
[367925880,1750968645069,-151.0,0.00021643,2]
[367925882,1750968645078,-460.0,0.00021643,2]
[367925884,1750968645086,-460.0,0.00021643,2]
[367925886,1750968645095,-3629.06,0.00021643,2]
[367925888,1750968645104,-3629.06,0.00021643,2]
[367925890,1750968645114,-3629.06,0.00021643,2]
[367925892,1750968645127,-3629.06,0.00021643,2]
[367925894,1750968645136,-516.4,0.00021643,2]
[367925896,1750968645146,-3629.06,0.00021643,2]
[367925898,1750968645155,-2328.66,0.00021643,2]
[367925900,1750968645164,-1000.0,0.00021643,2]
[367925902,1750968645175,-460.0,0.00021643,2]
[367925904,1750968645185,-3629.06,0.00021643,2]
[367925905,1750968645195,-3629.06,0.00021643,2]
[367925907,1750968645205,-3629.06,0.00021643,2]
[367925909,1750968645214,-3629.06,0.00021643,2]
[367925911,1750968645223,-3629.06,0.00021643,2]
[367925913,1750968645232,-3629.06,0.00021643,2]
[367925915,1750968645241,-3629.06,0.00021643,2]
[367925917,1750968645250,-460.0,0.00021643,2]
[367925919,1750968645259,-3629.06,0.00021643,2]
[367925921,1750968645268,-460.0,0.00021643,2]
[367925923,1750968645278,-3629.06,0.00021643,2]
[367925925,1750968645287,-460.0,0.00021643,2]
[367925927,1750968645297,-3629.06,0.00021643,2]
[367925929,1750968645306,-460.0,0.00021643,2]
[367925931,1750968645316,-3629.06,0.00021643,2]
[367925933,1750968645325,-3629.06,0.00021643,2]
[367925935,1750968645334,-460.669556,0.00021643,2]
[367925937,1750968645343,-3629.06,0.00021643,2]
[367925940,1750968645352,-3629.06,0.00021643,2]
[367925943,1750968645361,-3629.06,0.00021643,2]
[367925946,1750968645372,-3629.06,0.00021643,2]
[367925949,1750968645380,-3629.06,0.00021643,2]
[367925951,1750968645390,-1036.86,0.00021643,2]
[367925953,1750968645399,-1150.3,0.00021643,2]
[367925955,1750968645408,-3629.06,0.00021643,2]
[367925957,1750968645417,-3629.26618838,0.00021643,2]
[367925959,1750968645426,-460.0,0.00021643,2]
[367925961,1750968645435,-460.0,0.00021643,2]
[367925962,1750968645446,-460.0,0.00021643,2]
[367925965,1750968645456,-659.78,0.00021643,2]
[367925967,1750968645465,-610.62,0.00021643,2]
[367925968,1750968645475,-460.0,0.00021643,2]
[367925970,1750968645484,-460.0,0.00021643,2]
[367925972,1750968645496,-460.0,0.00021643,2]
[367925974,1750968645506,-464.93385656,0.00021643,2]
[367925977,1750968645516,-460.0,0.00021643,2]
[367925978,1750968645526,-460.0,0.00021643,2]
[367925980,1750968645535,-460.0,0.00021643,2]
[367925982,1750968645545,-460.0,0.00021643,2]
[367925984,1750968645554,-585.64,0.00021643,2]
[367925986,1750968645563,-460.0,0.00021643,2]
[367925988,1750968645573,-576.73,0.00021643,2]
[367925990,1750968645583,-528.66,0.00021643,2]
[367925992,1750968645592,-750.82,0.00021643,2]
[367925994,1750968645602,-460.0,0.00021643,2]
[367925996,1750968645611,-460.0,0.00021643,2]
[367925998,1750968645622,-460.44626282,0.00021643,2]
[367926000,1750968645632,-460.0,0.00021643,2]
[367926002,1750968645642,-1633.16,0.00021643,2]
[367926004,1750968645651,-460.0,0.00021643,2]
[367926006,1750968645661,-460.0,0.00021643,2]
[367926008,1750968645670,-151.0,0.00021643,2]
[367926010,1750968645679,-460.0,0.00021643,2]
[367926012,1750968645688,-675.12,0.00021643,2]
[367926014,1750968645698,-1510.91,0.00021643,2]
[367926016,1750968645708,-460.0,0.00021643,2]
[367926018,1750968645717,-500.0,0.00021643,2]
[367926020,1750968645727,-500.0,0.00021643,2]
[367926022,1750968645736,-500.0,0.00021643,2]
[367926024,1750968645746,-500.0,0.00021643,2]
[367926026,1750968645755,-500.0,0.00021643,2]
[367926028,1750968645766,-500.0,0.00021643,2]
[367926030,1750968645776,-500.0,0.00021643,2]
[367926032,1750968645785,-460.0,0.00021643,2]
[367926034,1750968645795,-426.5,0.00021643,2]
[367926036,1750968645804,-460.0,0.00021643,2]
[367926037,1750968645813,-460.0,0.00021643,2]
[367926039,1750968645823,-460.0,0.00021643,2]
[367926041,1750968645832,-561.94,0.00021643,2]
[367926043,1750968645841,-460.0,0.00021643,2]
[367926045,1750968645850,-460.0,0.00021643,2]
[367926047,1750968645860,-366.70889909,0.00021643,2]
[367926049,1750968645869,-460.0,0.00021643,2]
[367926051,1750968645879,-151.0,0.00021643,2]
[367926053,1750968645889,-151.0,0.00021643,2]
[367926055,1750968645898,-460.0,0.00021643,2]
[367926057,1750968645908,-826.54,0.00021643,2]
[367926059,1750968645917,-151.0,0.00021643,2]
[367926061,1750968645928,-460.0,0.00021643,2]
[367926063,1750968645937,-460.0,0.00021643,2]
[367926066,1750968645946,-460.0,0.00021643,2]
[367926067,1750968645956,-770.3,0.00021643,2]
[367926069,1750968645965,-460.0,0.00021643,2]
[367926071,1750968645974,-1567.91,0.00021643,2]
[367926073,1750968645984,-460.0,0.00021643,2]
[367926075,1750968645993,-253.19146181,0.00021643,2]
[367926077,1750968646002,-601.94850018,0.00021643,2]
[367926079,1750968646012,-460.0,0.00021643,2]
[367926081,1750968646022,-460.0,0.00021643,2]
[367926083,1750968646031,-3629.06,0.00021643,2]
[367926085,1750968646041,-946.55,0.00021643,2]
[367926087,1750968646050,-460.0,0.00021643,2]
[367926089,1750968646059,-460.0,0.00021643,2]
[367926091,1750968646070,-460.0,0.00021643,2]
[367926093,1750968646079,-460.0,0.00021643,2]
[367926096,1750968646089,-5670.12,0.00021643,2]
[367926099,1750968646099,-827.88,0.00021643,2]
[367926101,1750968646108,-1114.94,0.00021643,2]
[367926103,1750968646119,-628.06,0.00021643,2]
[367926105,1750968646128,-460.0,0.00021643,2]
[367926108,1750968646139,-460.0,0.00021643,2]
[367926110,1750968646148,-1115.36,0.00021643,2]
[367926111,1750968646158,-460.0,0.00021643,2]
[367926113,1750968646167,-711.77,0.00021643,2]
[367926116,1750968646178,-460.0,0.00021643,2]
[367926118,1750968646187,-460.0,0.00021643,2]
[367926119,1750968646197,-568.24436675,0.00021643,2]
[367926121,1750968646206,-1997.64,0.00021643,2]
[367926123,1750968646217,-710.02,0.00021643,2]
[367926125,1750968646226,-785.17,0.00021643,2]
[367926127,1750968646235,-460.0,0.00021643,2]
[367926129,1750968646245,-460.0,0.00021643,2]
[367926131,1750968646254,-460.0,0.00021643,2]
[367926133,1750968646263,-460.0,0.00021643,2]
[367926135,1750968646273,-460.0,0.00021643,2]
[367926137,1750968646282,-1048.38,0.00021643,2]
[367926139,1750968646292,-460.0,0.00021643,2]
[367926141,1750968646301,-460.0,0.00021643,2]
[367926143,1750968646311,-460.0,0.00021643,2]
[367926145,1750968646320,-707.16,0.00021643,2]
[367926147,1750968646329,-460.0,0.00021643,2]
[367926163,1750968646473,-460.0,0.00021643,2]
[367926165,1750968646484,-460.0,0.00021643,2]
[367926167,1750968646494,-460.0,0.00021643,2]
[367926169,1750968646504,-1411.85,0.00021643,2]
[367926171,1750968646513,-208.56487203,0.00021643,2]
[367926173,1750968646525,-460.0,0.00021643,2]
[367926175,1750968646536,-460.0,0.00021643,2]
[367926177,1750968646546,-460.0,0.00021643,2]
[367926179,1750968646555,-800.0,0.00021645,2]
[367926181,1750968646564,-800.0,0.00021667,2]
[367926183,1750968646574,-500.0,0.00021673,2]
[367926185,1750968646583,-353.80032943,0.00021673,2]
[367926187,1750968646592,-500.0,0.00021673,2]
[367926189,1750968646601,-500.0,0.00021673,2]
[367926191,1750968646610,-500.0,0.00021673,2]
[367926193,1750968646620,-500.0,0.00021673,2]
[367926195,1750968646629,-500.0,0.00021673,2]
[367926197,1750968646638,-500.0,0.00021673,2]
[367926199,1750968646648,-500.0,0.00021673,2]
[367926201,1750968646658,-640.6587808,0.00021673,2]
[367926203,1750968646667,-500.0,0.00021673,2]
[367926205,1750968646675,-314.3743946,0.00021673,2]
[367926207,1750968646685,-500.0,0.00021673,2]
[367926209,1750968646694,-500.0,0.00021673,2]
[367926211,1750968646703,-500.0,0.00021673,2]
[367926213,1750968646713,-500.0,0.00021673,2]
[367926215,1750968646723,-603.3048026,0.00021688,2]
[367926217,1750968646732,-200.0,0.0002171,4]
[367926219,1750968646742,-800.0,0.00021734,2]
[367926221,1750968646751,-795.7,0.0002176,3]
[367926223,1750968646760,-397.84,0.0002176,3]
[367926224,1750968646770,-853.44140853,0.00021762,5]
[367926225,1750968646779,-290.251119,0.0002178,2]
[367926226,1750968646788,-290.251119,0.0002178,2]
[367926227,1750968646798,-151.0,0.0002178,2]
[367926228,1750968646807,-151.0,0.0002178,2]
[367926229,1750968646817,-127742.60349665,0.0002178,2]
[367926230,1750968646826,-151.0,0.0002178,2]
[367926231,1750968646836,-151.0,0.0002178,2]
[367926233,1750968646845,-224.74916,0.0002178,2]
[367926235,1750968646854,-151.0,0.0002178,2]
[367926237,1750968646864,-1721.010829,0.0002178,5]
[367926239,1750968646873,-151.0,0.0002178,2]
[367926241,1750968646882,-151.0,0.0002178,2]
[367926243,1750968646891,-151.0,0.0002178,2]
[367926245,1750968646902,-151.0,0.0002178,2]
[367926247,1750968646912,-151.0,0.0002178,2]
[367926249,1750968646921,-151.0,0.0002178,2]
[367926251,1750968646931,-151.0,0.0002178,2]
[367926252,1750968646941,-151.0,0.0002178,2]
[367926253,1750968646951,-151.0,0.0002178,2]
[367926254,1750968646960,-170.896228,0.0002178,2]
[367926255,1750968646969,-170.896228,0.0002178,2]
[367926256,1750968646979,-151.0,0.0002178,2]
[367926257,1750968646988,-572.117446,0.0002178,2]
[367926258,1750968646998,-151.0,0.0002178,2]
[367926259,1750968647008,-572.117446,0.0002178,2]
[367926260,1750968647017,-151.0,0.0002178,2]
[367926261,1750968647026,-151.0,0.0002178,2]
[367926262,1750968647035,-151.0,0.0002178,2]
[367926263,1750968647045,-151.0,0.0002178,2]
[367926264,1750968647054,-151.0,0.0002178,2]
[367926265,1750968647064,-151.0,0.0002178,2]
[367926266,1750968647076,-151.0,0.0002178,2]
[367926267,1750968647085,-1000.0,0.000218,5]
[367926268,1750968647094,-1000.0,0.0002182,5]
[367926269,1750968647104,-1000.0,0.0002184,5]
[367926270,1750968647113,-800.0,0.00021859,2]
[367926271,1750968647122,-1000.0,0.0002186,5]
[367926272,1750968647131,-800.0,0.00021878,2]
[367926273,1750968647140,-1000.0,0.0002188,5]
[367926274,1750968647150,-2506.8,0.000219,2]
[367926275,1750968647159,-151.0,0.000219,2]
[367926276,1750968647168,-254.453323,0.000219,2]
[367926277,1750968647177,-254.453323,0.000219,2]
[367926278,1750968647186,-1000.0,0.000219,5]
[367926279,1750968647195,-188.858653,0.000219,2]
[367926280,1750968647204,-188.858653,0.000219,2]
[367926281,1750968647214,-360.384192,0.000219,2]
[367926282,1750968647223,-360.384192,0.000219,2]
[367926283,1750968647232,-640.0,0.000219,2]
[367926284,1750968647242,-188.523577,0.000219,2]
[367926285,1750968647251,-6764.50678833,0.000219,2]
[367926286,1750968647260,-800.0,0.00021908,2]
[367926287,1750968647269,-321.50189097,0.00021917,2]
[367926288,1750968647278,-3150.56362791,0.00021917,2]
[367926289,1750968647290,-460.0,0.00021917,2]
[367926290,1750968647299,-290.251119,0.00021917,2]
[367926291,1750968647308,-290.251119,0.00021917,2]
[367926292,1750968647320,-290.251119,0.00021917,2]
[367926293,1750968647329,-152.01700912,0.00021917,2]
[367926294,1750968647339,-290.251119,0.00021917,2]
[367926295,1750968647348,-290.251119,0.00021917,2]
[367926296,1750968647357,-290.251119,0.00021917,2]
[367926297,1750968647367,-441.22791932,0.00021917,2]
[367926298,1750968647377,-460.0,0.00021917,2]
[367926299,1750968647386,-151.0,0.00021917,2]
[367926300,1750968647395,-151.0,0.00021917,2]
[367926302,1750968647405,-151.0,0.00021917,2]
[367926304,1750968647414,-460.83879382,0.00021917,2]
[367926306,1750968647424,-460.0,0.00021917,2]
[367926308,1750968647433,-460.49172932,0.00021917,2]
[367926310,1750968647443,-151.0,0.00021917,2]
[367926311,1750968647453,-151.0,0.00021917,2]
[367926313,1750968647462,-151.0,0.00021917,2]
[367926315,1750968647471,-460.0,0.00021917,2]
[367926317,1750968647481,-460.0,0.00021917,2]
[367926319,1750968647490,-460.0,0.00021917,2]
[367926321,1750968647499,-460.0,0.00021917,2]
[367926323,1750968647508,-460.0,0.00021917,2]
[367926325,1750968647517,-460.0,0.00021917,2]
[367926327,1750968647526,-460.0,0.00021917,2]
[367926329,1750968647536,-460.0,0.00021917,2]
[367926331,1750968647546,-460.0,0.00021917,2]
[367926333,1750968647555,-460.0,0.00021917,2]
[367926335,1750968647565,-151.0,0.00021917,2]
[367926338,1750968647575,-467.77457106,0.00021917,2]
[367926340,1750968647585,-433.38330224,0.00021917,2]
[367926341,1750968647594,-460.0,0.00021917,2]
[367926343,1750968647603,-296.118955,0.00021917,2]
[367926345,1750968647613,-460.0,0.00021917,2]
[367926347,1750968647622,-460.0,0.00021917,2]
[367926349,1750968647632,-460.0,0.00021917,2]
[367926351,1750968647643,-460.0,0.00021917,2]
[367926353,1750968647653,-460.0,0.00021917,2]
[367926355,1750968647662,-460.0,0.00021917,2]
[367926357,1750968647671,-476.24,0.00021917,2]
[367926359,1750968647680,-151.0,0.00021917,2]
[367926361,1750968647690,-460.0,0.00021917,2]
[367926363,1750968647700,-336.1600341,0.00021917,2]
[367926365,1750968647710,-460.0,0.00021917,2]
[367926367,1750968647719,-460.0,0.00021917,2]
[367926369,1750968647728,-460.0,0.00021917,2]
[367926371,1750968647738,-460.0,0.00021917,2]
[367926373,1750968647748,-460.0,0.00021917,2]
[367926375,1750968647757,-460.0,0.00021917,2]
[367926377,1750968647767,-460.0,0.00021917,2]
[367926379,1750968647776,-460.0,0.00021917,2]
[367926381,1750968647785,-460.0,0.00021917,2]
[367926382,1750968647795,-465.31,0.00021917,2]
[367926383,1750968647804,-460.0,0.00021917,2]
[367926384,1750968647815,-460.0,0.00021917,2]
[367926385,1750968647824,-244.81484,0.00021917,2]
[367926387,1750968647834,-460.0,0.00021917,2]
[367926389,1750968647843,-549.086188,0.00021917,2]
[367926391,1750968647852,-460.0,0.00021917,2]
[367926393,1750968647861,-460.0,0.00021917,2]
[367926395,1750968647871,-500.0,0.00021917,2]
[367926397,1750968647880,-460.0,0.00021917,2]
[367926399,1750968647889,-587.64,0.00021917,2]
[367926401,1750968647898,-460.0,0.00021917,2]
[367926403,1750968647907,-460.0,0.00021917,2]
[367926405,1750968647916,-460.0,0.00021917,2]
[367926407,1750968647926,-460.0,0.00021917,2]
[367926409,1750968647935,-460.0,0.00021917,2]
[367926411,1750968647945,-460.0,0.00021917,2]
[367926413,1750968647954,-1191.62,0.00021917,2]
[367926415,1750968647963,-460.0,0.00021917,2]
[367926417,1750968647972,-151.0,0.00021917,2]
[367926419,1750968647981,-460.0,0.00021917,2]
[367926421,1750968647990,-254.453323,0.00021917,2]
[367926423,1750968647999,-460.0,0.00021917,2]
[367926425,1750968648008,-254.453323,0.00021917,2]
[367926427,1750968648018,-625.16,0.00021917,2]
[367926428,1750968648027,-460.0,0.00021917,2]
[367926431,1750968648036,-151.0,0.00021917,2]
[367926433,1750968648045,-410.0,0.00021917,2]
[367926435,1750968648055,-460.0,0.00021917,2]
[367926437,1750968648065,-662.83,0.00021917,2]
[367926439,1750968648074,-460.0,0.00021917,2]
[367926441,1750968648084,-460.0,0.00021917,2]
[367926443,1750968648093,-460.0,0.00021917,2]
[367926445,1750968648103,-460.0,0.00021917,2]
[367926446,1750968648112,-460.0,0.00021917,2]
[367926449,1750968648122,-460.0,0.00021917,2]
[367926451,1750968648131,-460.0,0.00021917,2]
[367926453,1750968648140,-531.8240613,0.00021917,2]
[367926455,1750968648150,-460.0,0.00021917,2]
[367926457,1750968648159,-151.0,0.00021917,2]
[367926459,1750968648169,-463.84427361,0.00021917,2]
[367926461,1750968648179,-151.0,0.00021917,2]
[367926463,1750968648189,-460.0,0.00021917,2]
[367926465,1750968648199,-460.0,0.00021917,2]
[367926467,1750968648209,-460.0,0.00021917,2]
[367926469,1750968648218,-460.0,0.00021917,2]
[367926471,1750968648228,-460.0,0.00021917,2]
[367926472,1750968648238,-2691.310661,0.00021917,2]
[367926474,1750968648247,-460.0,0.00021917,2]
[367926476,1750968648256,-2691.310661,0.00021917,2]
[367926478,1750968648265,-460.0,0.00021917,2]